bitfinex-derivatives/quotes_SOLF0:USTF0_20250820
["timestamp","ask_amount","ask_price","bid_price","bid_amount"]
[1755697529104,0.06,180.25,180.1,3.12]
[1755697529300,8.25330268,180.26,180.1,3.12]
[1755697529502,0.06,180.3,180.1,3.12]
[1755697529804,372.3,180.32,180.21,3.12]
[1755697530304,372.36,180.32,180.21,3.12]
[1755697530609,380.61330268,180.32,180.14,3.12]
[1755697530907,8.25330268,180.27,180.14,3.12]
[1755697531300,152.88,180.31,180.14,3.12]
[1755697531507,8.31330268,180.3,180.14,3.12]
[1755697531813,0.06,180.3,180.21,5.5481]
[1755697532004,0.06,180.3,180.14,3.12]
[1755697532206,8.25330268,180.27,180.14,3.12]
[1755697532400,0.06,180.26,180.14,3.12]
[1755697532602,8.25330268,180.22,180.08,4.08600924]
[1755697532803,5.55,180.16,180.09,5.552]
[1755697533004,153.12,180.21,180.08,3.12]
[1755697533402,0.06,180.16,180.04,0.96619699]
[1755697533598,0.06,180.16,180.0,3.12]
[1755697533797,8.31330268,180.12,180.0,3.12]
[1755697534201,0.06,180.12,180.0,3.12]
[1755697534412,5.5517,180.11,180.0,3.12]
[1755697534602,0.06,180.12,180.0,3.12]
[1755697534797,8.25330268,180.15,180.0,3.12]
[1755697535004,0.06,180.17,180.04,3.12]
[1755697536107,5.5502,180.15,180.07,5.5525]
[1755697536312,0.06,180.17,179.97,3.12]
[1755697536698,154.02,180.17,179.97,3.12]
[1755697536901,0.06,180.17,179.97,3.12]
[1755697537200,372.62,180.18,179.97,3.12]
[1755697537396,0.06,180.23,180.02,3.12]
[1755697537607,372.86,180.28,180.02,375.98]
[1755697537802,372.86,180.28,180.07,3.12]
[1755697538202,372.86,180.28,180.16,3.12]
[1755697538610,372.86,180.28,180.15,5.5499]
[1755697538908,0.06,180.23,180.11,3.12]
[1755697539105,0.06,180.23,180.07,62.0]
[1755697539509,8.25330268,180.24,180.08,3.12]
[1755697539702,0.06,180.23,180.11,5.5512]
[1755697539904,0.06,180.23,180.08,3.12]
[1755697540617,0.06,180.18,180.03,3.12]
[1755697540915,154.08,180.17,180.03,3.12]
[1755697541212,5.5517,180.11,180.03,8.6737]
[1755697541511,0.06,180.16,180.03,3.12]
[1755697541512,8.31330268,180.16,180.03,3.12]
[1755697541709,8.31330268,180.16,179.99,119.88953662]
[1755697541710,5.5521,180.09,180.02,5.5542]
[1755697541912,0.06,180.14,179.99,119.88953662]
[1755697542512,0.06,180.1,179.99,119.88953662]
[1755697542814,0.06,180.1,179.98,3.12]
[1755697543018,0.06,180.1,179.93,3.12]
[1755697543914,389.5,180.15,179.93,3.12]
[1755697543915,0.06,180.05,179.93,3.12]
[1755697544106,154.2,180.04,179.93,3.12]
[1755697544511,154.2,180.04,179.88,4.08704274]
[1755697544706,0.06,180.03,179.88,4.08704274]
[1755697544907,5.5546,180.01,179.94,5.5565]
[1755697545111,0.06,180.03,179.94,5.5565]
[1755697545411,5.5545,180.02,179.88,4.08704274]
[1755697545607,0.06,180.03,179.88,4.08704274]
[1755697546513,8.25330268,180.01,179.88,3.12]
[1755697548515,0.04089811,179.96,179.88,3.12]
[1755697548911,0.04089811,179.96,179.93,3.15549137]
[1755697549116,0.04089811,179.96,179.94,3.12]
[1755697549321,0.06,180.03,179.94,3.12]
[1755697549718,153.58,180.06,179.94,3.12]
[1755697550015,0.06,180.09,179.94,3.12]
[1755697550823,161.83330268,180.12,179.94,3.12]
[1755697550824,8.25330268,180.07,179.94,3.12]
[1755697551120,0.06,180.06,179.94,3.12]
[1755697551721,0.06,180.06,179.86,3.12]
[1755697551914,0.06,180.06,179.93,5.5567]
[1755697552116,0.06,180.06,179.86,3.12]
[1755697552312,0.06,180.01,179.86,3.12]
[1755697552923,0.06,180.01,179.92,5.5571]
[1755697553121,0.06,180.01,179.86,3.12]
[1755697553620,153.5,180.01,179.86,3.12]
[1755697553818,0.06,180.0,179.75,11.1251]
[1755697554020,8.25330268,179.94,179.82,4.08733843]
[1755697554224,8.31330268,179.94,179.82,3.12]
[1755697554416,5.5588,179.88,179.82,3.12]
[1755697554622,8.31330268,179.94,179.82,3.12]
[1755697554824,8.25330268,179.93,179.82,3.12]
[1755697555224,8.31330268,179.94,179.82,3.12]
[1755697556019,162.57330268,179.94,179.82,3.12]
[1755697556622,162.51330268,179.94,179.77,4.0676343]
[1755697556917,0.07,179.89,179.77,3.1]
[1755697557322,0.07,179.89,179.72,3.1]
[1755697557519,373.43,179.89,179.72,3.1]
[1755697557718,373.43,179.89,179.7,0.96794381]
[1755697557719,0.07,179.84,179.7,0.96794381]
[1755697557924,8.25330268,179.82,179.71,3.1]
[1755697558129,0.07,179.84,179.71,3.1]
[1755697558325,154.08,179.86,179.71,3.1]
[1755697558522,0.07,179.85,179.71,3.1]
[1755697560030,8.25330268,179.83,179.71,3.1]
[1755697560326,154.27,179.85,179.71,3.1]
[1755697560530,8.25330268,179.83,179.71,3.1]
[1755697560732,5.5611,179.8,179.72,5.5635]
[1755697560930,8.25330268,179.83,179.71,3.1]
[1755697561223,5.5613,179.8,179.72,5.5634]
[1755697561426,0.07,179.84,179.71,3.1]
[1755697561828,5.5617,179.78,179.71,3.1]
[1755697562027,0.07,179.84,179.71,3.1]
[1755697562224,8.25330268,179.82,179.65,0.968267]
[1755697562428,0.07,179.81,179.66,3.1]
[1755697562629,0.07,179.81,179.66,65.1]
[1755697562826,0.07,179.77,179.65,0.968267]
[1755697563025,154.79,179.77,179.65,3.1]
[1755697563226,0.07,179.77,179.65,3.1]
[1755697563633,154.75,179.77,179.65,3.1]
[1755697564236,8.25330268,179.74,179.61,4.06857692]
[1755697564541,373.75,179.76,179.61,3.1]
[1755697564728,8.25330268,179.74,179.61,3.1]
[1755697564933,5.5641,179.7,179.61,3.1]
[1755697565138,0.07,179.72,179.61,3.1]
[1755697565435,528.74,179.76,179.61,3.1]
[1755697565929,528.74,179.76,179.63,3.1]
[1755697566325,8.25330268,179.74,179.63,3.1]
[1755697566529,0.07,179.73,179.56,0.96867128]
[1755697566729,0.07,179.69,179.57,3.1]
[1755697567037,0.07,179.69,179.58,3.1]
[1755697567336,163.53330268,179.69,179.58,3.1]
[1755697567540,0.07,179.65,179.54,3.1]
[1755697567836,8.25330268,179.64,179.54,3.1]
[1755697568036,0.07,179.65,179.54,3.1]
[1755697568229,0.07,179.71,179.54,3.1]
[1755697568426,155.62,179.7,179.54,3.1]
[1755697568638,155.62,179.7,179.63,3.1]
[1755697568935,0.07,179.8,179.63,3.1]
[1755697569134,0.07,179.8,179.71,3.1]
[1755697569340,8.25330268,179.78,179.64,3.1]
[1755697569637,0.07,179.8,179.64,3.1]
[1755697569840,8.25330268,179.81,179.64,3.1]
[1755697570036,13.81250268,179.86,179.64,11.35330268]
[1755697570233,164.77330268,179.86,179.65,3.1]
[1755697570537,5.5594,179.86,179.78,5.5614]
[1755697570733,0.07,179.89,179.7,3.1]
[1755697570925,373.78,179.9,179.74,8.25330268]
[1755697571128,0.07,179.95,179.75,3.1]
[1755697572156,373.8,180.0,179.74,8.25330268]
[1755697572340,373.87,180.0,179.79,70.25330268]
[1755697572640,373.87,180.0,179.8,3.1]
[1755697573240,373.87,180.0,179.87,3.1]
[1755697573435,373.8,180.0,179.87,3.1]
[1755697573641,0.07,180.05,179.87,3.1]
[1755697573845,156.38,180.07,179.94,3.1]
[1755697574535,156.38,180.07,179.82,373.7]
[1755697574536,8.25330268,180.04,179.82,373.7]
[1755697574741,8.25330268,180.04,179.88,3.1]
[1755697575134,156.48,180.05,179.88,3.1]
[1755697575743,5.5557,179.98,179.88,3.1]
[1755697575941,8.25330268,180.02,179.88,65.1]
[1755697576248,164.70330268,180.09,179.89,3.1]
[1755697576449,164.63330268,180.09,179.94,3.1]
[1755697576641,156.38,180.09,179.94,3.1]
[1755697577444,156.38,180.09,179.99,3.1]
[1755697577947,156.45,180.09,179.95,5.5564]
[1755697578153,0.07,180.09,179.9,3.1]
[1755697578444,8.25330268,180.08,179.9,8.6577]
[1755697578651,0.07,180.07,179.9,3.1]
[1755697579644,8.25330268,180.09,179.92,3.1]
[1755697580054,373.7,180.1,179.92,3.1]
[1755697580243,5.5527,180.07,179.95,3.1]
[1755697580447,373.7,180.1,179.95,3.1]
[1755697580642,373.7,180.1,179.97,5.5557]
[1755697580643,5.5521,180.09,179.97,5.5557]
[1755697580848,0.07,180.13,179.94,3.1]
[1755697581255,0.07,180.19,180.08,3.1]
[1755697581443,373.52,180.2,180.08,3.1]
[1755697581648,164.61330268,180.23,180.08,3.1]
[1755697581853,0.07,180.24,180.08,3.1]
[1755697582849,0.07,180.24,180.13,8.6507]
[1755697583045,0.07,180.24,180.13,3.1]
[1755697583446,0.07,180.24,180.08,3.1]
[1755697584545,0.07,180.24,180.14,3.1]
[1755697584950,8.25330268,180.29,180.05,3.1]
[1755697585151,156.26,180.28,180.05,3.1]
[1755697585556,0.06,180.27,180.06,2.92]
[1755697586058,0.06,180.27,180.13,2.92]
[1755697586458,5.5475,180.24,180.13,2.92]
[1755697586660,0.06,180.27,180.13,2.92]
[1755697586852,0.06,180.23,180.06,2.92]
[1755697587050,156.3,180.23,180.1,2.92]
[1755697587455,5.5484,180.22,180.1,2.92]
[1755697587657,156.3,180.23,180.1,2.92]
[1755697587862,0.06,180.22,180.01,2.92]
[1755697588057,0.06,180.18,180.01,2.92]
[1755697588962,156.24,180.23,179.9,2.92]
[1755697588963,0.06,180.13,179.9,2.92]
[1755697589156,5.5516,180.11,179.97,2.92]
[1755697589457,0.06,180.13,179.97,2.92]
[1755697590852,0.06,180.13,179.98,62.0]
[1755697591058,8.25330268,180.13,179.97,2.92]
[1755697591266,0.06,180.12,179.97,2.92]
[1755697591765,156.14,180.12,179.97,2.92]
[1755697592158,0.06,180.07,179.97,2.92]
[1755697592663,156.0,180.12,179.97,2.92]
[1755697593055,0.06,180.11,179.97,2.92]
[1755697593664,0.06,180.04,179.9,2.92]
[1755697594168,0.06,180.04,179.9,70.4779]
[1755697594463,0.06,180.04,179.9,64.92]
[1755697595463,5.5542,180.03,179.92,5.5572]
[1755697595664,8.25330268,180.07,179.91,2.92]
[1755697596461,0.06,180.06,179.91,2.92]
[1755697597162,5.5534,180.05,179.95,5.5562]
[1755697597363,0.06,180.06,179.91,2.92]
[1755697597571,5.554,180.03,179.92,5.5571]
[1755697597769,0.06,180.06,179.92,5.5571]
[1755697597970,0.06,180.06,179.91,2.92]
[1755697598465,0.06,180.06,179.74,11.1255]
[1755697598466,0.06,180.02,179.82,2.92]
[1755697598873,0.06,180.02,179.83,62.0]
[1755697599671,5.5568,179.94,179.83,67.5599]
[1755697599968,0.06,179.97,179.82,2.92]
[1755697600170,5.5577,179.91,179.82,2.92]
[1755697600466,5.5577,179.91,179.8,2.92]
[1755697600775,8.25330268,179.93,179.8,2.92]
[1755697600964,0.06,179.92,179.8,2.92]
[1755697601367,0.06,179.92,179.75,2.92]
[1755697601667,0.06,179.87,179.69,2.92]
[1755697601970,155.38,179.87,179.69,2.92]
[1755697602165,0.06,179.82,179.69,2.92]
[1755697602874,5.6205,179.82,179.71,5.5638]
[1755697603077,0.06,179.82,179.69,2.92]
[1755697603373,5.6207,179.82,179.71,5.5636]
[1755697603568,8.25330268,179.86,179.69,2.92]
[1755697603963,0.06,179.85,179.69,2.92]
[1755697604573,155.28,179.9,179.69,2.92]
[1755697605175,155.28,179.9,179.74,2.92]
[1755697605470,0.06,179.96,179.74,2.92]
[1755697605673,373.5,180.01,179.79,2.92]
[1755697606163,0.06,180.06,179.84,2.92]
[1755697606363,0.06,180.06,179.97,5.5558]
[1755697606569,0.06,180.06,179.94,2.92]
[1755697606778,155.52,180.11,179.94,64.92]
[1755697606976,8.31330268,180.1,179.94,64.92]
[1755697607369,5.5541,180.03,179.92,5.5571]
[1755697607568,5.5541,180.03,179.89,2.92]
[1755697607569,0.06,180.05,179.89,2.92]
[1755697608571,5.554,180.03,179.89,2.92]
[1755697608767,0.06,180.05,179.89,2.92]
[1755697608973,0.06,180.04,179.89,2.92]
[1755697609773,0.06,179.99,179.83,2.92]
[1755697610367,0.06,179.99,179.84,62.0]
[1755697610764,0.06,179.99,179.88,2.92]
[1755697611170,5.555,180.0,179.9,5.5578]
[1755697611481,0.06,180.03,179.84,62.0]
[1755697611666,5.5567,179.95,179.85,5.5595]
[1755697611984,5.5567,179.95,179.83,2.92]
[1755697611985,0.06,179.98,179.83,2.92]
[1755697612367,0.06,179.93,179.78,2.92]
[1755697612970,5.5578,179.91,179.82,5.5602]
[1755697613176,0.06,179.93,179.78,2.92]
[1755697613475,5.5578,179.91,179.82,5.5605]
[1755697613680,0.06,179.93,179.78,2.92]
[1755697614075,5.5578,179.91,179.78,2.92]
[1755697614665,5.5581,179.9,179.79,62.0]
[1755697614867,0.06,179.93,179.79,62.0]
[1755697615068,0.06,179.93,179.8,5.5609]
[1755697615278,5.5578,179.91,179.79,62.0]
[1755697615481,0.06,179.93,179.79,62.0]
[1755697615779,5.5589,179.88,179.78,2.92]
[1755697616174,0.07,179.91,179.78,2.92]
[1755697616479,5.5593,179.86,179.78,2.92]
[1755697616682,0.07,179.91,179.74,155.2]
[1755697616979,0.07,179.91,179.72,3.04]
[1755697616980,5.5605,179.82,179.72,3.04]
[1755697617181,0.07,179.86,179.72,3.04]
[1755697617573,5.5611,179.8,179.72,3.04]
[1755697617780,8.32330268,179.86,179.72,3.04]
[1755697617975,0.07,179.85,179.72,3.04]
[1755697619279,5.5615,179.79,179.72,3.04]
[1755697619479,0.07,179.85,179.72,3.04]
[1755697619676,0.07,179.85,179.67,3.04]
[1755697620177,0.07,179.8,179.62,3.04]
[1755697621184,0.07,179.78,179.62,3.04]
[1755697621878,0.07,179.77,179.62,3.04]
[1755697622278,5.5639,179.72,179.62,3.04]
[1755697622480,0.07,179.77,179.62,3.04]
[1755697622783,5.5638,179.72,179.62,3.04]
[1755697622980,0.07,179.77,179.62,3.04]
[1755697623286,8.25330268,179.79,179.62,3.04]
[1755697623588,0.07,179.78,179.62,3.04]
[1755697623780,0.07,179.78,179.58,84.72661886]
[1755697623781,5.5651,179.68,179.55,3.04]
[1755697624083,0.07,179.73,179.55,3.04]
[1755697624477,0.07,179.73,179.6,5.5671]
[1755697624681,0.07,179.73,179.6,3.04]
[1755697624983,0.07,179.78,179.66,5.5655]
[1755697625184,0.07,179.78,179.66,3.04]
[1755697625373,5.5642,179.71,179.59,3.04]
[1755697625577,0.07,179.78,179.55,3.04]
[1755697625773,0.07,179.78,179.59,3.04]
[1755697626176,0.07,179.78,179.56,8.25330268]
[1755697626177,0.07,179.78,179.63,3.04]
[1755697626784,0.07,179.82,179.63,3.04]
[1755697627179,0.07,179.78,179.63,3.04]
[1755697628483,0.07,179.78,179.54,373.56]
[1755697628687,5.5649,179.68,179.58,5.5678]
[1755697628984,0.07,179.74,179.59,3.04]
[1755697629377,5.5648,179.69,179.59,3.04]
[1755697629580,0.07,179.74,179.59,3.04]
[1755697630986,5.5646,179.7,179.62,5.5665]
[1755697631187,0.07,179.74,179.59,3.04]
[1755697631386,5.5639,179.72,179.63,5.5664]
[1755697631583,0.07,179.74,179.55,62.0]
[1755697631881,0.07,179.7,179.55,3.04]
[1755697632782,0.07,179.69,179.47,154.92917036]
[1755697633088,0.07,179.69,179.52,5.5699]
[1755697633282,0.07,179.68,179.48,3.04]
[1755697633484,0.07,179.65,179.48,3.04]
[1755697634389,0.07,179.7,179.48,3.04]
[1755697634588,0.07,179.69,179.48,3.04]
[1755697634777,0.07,179.69,179.5,3.04]
[1755697635182,5.5653,179.67,179.5,3.04]
[1755697635383,527.74,179.73,179.51,3.04]
[1755697635590,5.5642,179.71,179.53,3.04]
[1755697635786,16.6,179.8,179.56,3.04]
[1755697635787,8.25330268,179.78,179.56,3.04]
[1755697635985,0.07,179.8,179.56,3.04]
[1755697636284,0.07,179.8,179.68,3.04]
[1755697636599,5.5637,179.73,179.64,5.5659]
[1755697636992,0.07,179.78,179.63,3.04]
[1755697637195,5.5633,179.74,179.65,5.5656]
[1755697637587,5.5633,179.74,179.63,3.04]
[1755697637588,0.07,179.78,179.63,3.04]
[1755697638189,0.07,179.78,179.65,3.04]
[1755697638488,373.94,179.83,179.65,3.04]
[1755697638695,5.5611,179.81,179.65,3.04]
[1755697638991,373.94,179.83,179.65,3.04]
[1755697638992,0.07,179.82,179.65,3.04]
[1755697639188,0.07,179.79,179.65,3.04]
[1755697639591,373.94,179.83,179.65,3.04]
[1755697640189,373.94,179.83,179.71,3.04]
[1755697640391,0.07,179.82,179.66,3.04]
[1755697640594,1.46102442,179.82,179.66,3.04]
[1755697640783,5.5622,179.77,179.66,3.04]
[1755697640987,0.07,179.82,179.66,3.04]
[1755697641187,1.46098858,179.82,179.66,3.04]
[1755697641588,3.90703137,179.81,179.66,3.04]
[1755697641890,0.07,179.8,179.66,3.04]
[1755697642487,373.94,179.83,179.66,3.04]
[1755697643393,153.8,179.88,179.68,3.04]
[1755697644294,153.8,179.88,179.79,5.5612]
[1755697644496,153.8,179.88,179.68,3.04]
[1755697644800,153.8,179.88,179.7,3.04]
[1755697645300,153.8,179.88,179.72,3.04]
[1755697645502,5.5594,179.86,179.72,3.04]
[1755697645687,153.8,179.88,179.72,3.04]
[1755697645891,5.5598,179.85,179.75,5.5626]
[1755697646091,0.07,179.87,179.72,3.04]
[1755697646288,0.07,179.91,179.72,11.29330268]
[1755697646493,0.07,179.91,179.81,2.96]
[1755697647296,0.07,179.91,179.76,2.96]
[1755697648399,0.07,179.91,179.71,376.8]
[1755697648599,0.07,179.87,179.71,376.8]
[1755697648799,0.07,179.87,179.73,2.96]
[1755697649097,0.07,179.87,179.76,2.96]
[1755697649298,0.07,179.92,179.76,2.96]
[1755697649805,0.07,179.9,179.76,2.96]
[1755697650699,5.5591,179.87,179.78,5.5617]
[1755697651098,5.5591,179.87,179.76,2.96]
[1755697651099,0.07,179.9,179.76,2.96]
[1755697651603,0.07,179.87,179.71,2.96]
[1755697651794,0.07,179.87,179.62,8.25330268]
[1755697651795,8.25330268,179.83,179.61,153.32]
[1755697651995,1.39087559,179.82,179.62,2.96]
[1755697652205,0.07,179.81,179.62,2.96]
[1755697652408,0.07,179.8,179.62,2.96]
[1755697652608,1.46087559,179.8,179.62,2.96]
[1755697652810,153.34,179.81,179.73,5.5634]
[1755697653108,0.07,179.85,179.71,2.96]
[1755697653302,0.07,179.85,179.75,5.5626]
[1755697653603,0.07,179.85,179.71,2.96]
[1755697653806,5.5604,179.83,179.71,2.96]
[1755697654005,0.07,179.85,179.71,2.96]
[1755697654205,153.48,179.88,179.71,2.96]
[1755697654409,0.07,179.9,179.77,2.96]
[1755697654807,1.4602753,179.9,179.77,2.96]
[1755697655106,1.4602753,179.9,179.8,5.561]
[1755697655301,1.4602753,179.9,179.77,2.96]
[1755697655608,0.07,179.87,179.77,2.96]
[1755697656306,5.5598,179.85,179.77,2.96]
[1755697656501,0.07,179.87,179.71,62.0]
[1755697656703,0.07,179.87,179.72,2.96]
[1755697657205,3.86735365,179.86,179.72,2.96]
[1755697657406,1.46036177,179.87,179.72,2.96]
[1755697657407,0.07,179.87,179.73,5.5634]
[1755697657602,0.07,179.87,179.72,2.96]
[1755697657603,3.86866254,179.86,179.72,2.96]
[1755697657804,0.07,179.85,179.72,2.96]
[1755697658302,0.07,179.83,179.67,2.96]
[1755697658723,4.2380747,179.83,179.67,2.96]
[1755697658904,2.84722734,179.83,179.67,2.96]
[1755697659099,2.84722734,179.83,179.71,5.564]
[1755697659100,5.5621,179.78,179.71,5.564]
[1755697659305,0.07,179.83,179.67,2.96]
[1755697660205,4.24061329,179.83,179.67,2.96]
[1755697660410,2.84982875,179.83,179.67,2.96]
[1755697660805,3.87862398,179.82,179.7,5.5642]
[1755697661112,2.85037245,179.81,179.67,2.96]
[1755697661306,0.07,179.78,179.62,2.96]
[1755697661508,0.07,179.76,179.62,2.96]
[1755697661814,5.5644,179.7,179.62,2.96]
[1755697662012,0.07,179.76,179.62,2.96]
[1755697662212,3.88762609,179.75,179.62,2.96]
[1755697662404,0.07,179.76,179.62,2.96]
[1755697662610,3.88765929,179.75,179.62,2.96]
[1755697662804,0.07,179.76,179.62,2.96]
[1755697663011,3.88709578,179.75,179.62,2.96]
[1755697663202,0.07,179.76,179.62,2.96]
[1755697663203,3.88717205,179.74,179.62,2.96]
[1755697663411,5.5653,179.68,179.62,2.96]
[1755697663607,0.07,179.72,179.54,2.96]
[1755697663807,3.88648027,179.71,179.54,2.96]
[1755697664013,8.05564257,179.7,179.54,2.96]
[1755697664312,0.07,179.72,179.55,62.0]
[1755697664511,5.5661,179.65,179.57,5.5683]
[1755697664710,0.07,179.72,179.55,62.0]
[1755697664911,3.88472674,179.71,179.55,62.0]
[1755697665214,8.1232669,179.7,179.55,62.0]
[1755697665417,3.88472674,179.69,179.54,2.96]
[1755697665714,0.07,179.7,179.54,2.96]
[1755697666110,3.88761669,179.69,179.54,2.96]
[1755697666309,0.07,179.7,179.54,2.96]
[1755697668709,0.07,179.7,179.59,5.5678]
[1755697668911,1.46186363,179.7,179.54,2.96]
[1755697669212,0.07,179.69,179.54,2.96]
[1755697669418,8.32330268,179.67,179.49,2.96]
[1755697669609,5.5681,179.59,179.51,5.5704]
[1755697669808,0.07,179.65,179.49,2.96]
[1755697670010,0.07,179.63,179.49,2.96]
[1755697670216,0.07,179.63,179.5,5.5707]
[1755697670410,0.07,179.63,179.49,2.96]
[1755697670710,5.5677,179.6,179.52,5.5701]
[1755697671109,0.07,179.63,179.49,2.96]
[1755697671413,0.07,179.63,179.4,2.96]
[1755697671612,0.07,179.61,179.4,2.96]
[1755697671917,0.07,179.61,179.3,9.18317111]
[1755697671918,0.07,179.56,179.43,2.96]
[1755697672322,5.5706,179.51,179.43,8.5328]
[1755697672518,0.07,179.56,179.43,2.96]
[1755697673014,5.5705,179.52,179.44,5.5725]
[1755697673221,5.5705,179.52,179.43,2.96]
[1755697673422,0.07,179.56,179.43,2.96]
[1755697674014,0.07,179.56,179.46,5.5719]
[1755697674210,0.07,179.56,179.43,2.96]
[1755697675121,0.07,179.56,179.43,8.5328]
[1755697675322,0.07,179.56,179.43,2.96]
[1755697675816,0.09,179.55,179.38,3.04]
[1755697676212,5.572,179.47,179.38,3.04]
[1755697676412,0.09,179.51,179.38,3.04]
[1755697676716,5.5713,179.49,179.41,5.5736]
[1755697676912,0.09,179.51,179.38,3.04]
[1755697677914,5.5709,179.5,179.42,5.5732]
[1755697678126,0.09,179.51,179.41,3.04]
[1755697679321,0.09,179.51,179.42,5.5733]
[1755697679622,0.09,179.51,179.41,3.04]
[1755697679819,5.5712,179.5,179.41,3.04]
[1755697680020,0.09,179.51,179.41,3.04]
[1755697680318,5.5708,179.51,179.41,8.6136]
[1755697680523,0.09,179.57,179.41,3.04]
[1755697681020,121.66241277,179.6,179.44,3.04]
[1755697681520,121.66241277,179.6,179.48,3.04]
[1755697681723,0.09,179.59,179.48,3.04]
[1755697682025,121.66241277,179.6,179.48,3.04]
[1755697682417,5.5681,179.59,179.5,5.5708]
[1755697682614,0.09,179.65,179.51,3.04]
[1755697683026,0.09,179.66,179.51,3.04]
[1755697683226,0.09,179.63,179.42,3.04]
[1755697683414,8.25330268,179.64,179.43,62.0]
[1755697683618,8.25330268,179.64,179.46,3.04]
[1755697683619,0.09,179.58,179.46,3.04]
[1755697683815,8.25330268,179.64,179.46,3.04]
[1755697684122,0.09,179.63,179.52,3.04]
[1755697684318,373.98,179.67,179.52,3.04]
[1755697685020,123.14691335,179.74,179.56,3.04]
[1755697685325,374.37,179.79,179.56,3.04]
[1755697685525,5.5634,179.75,179.65,5.5662]
[1755697685726,374.37,179.79,179.64,3.04]
[1755697686026,374.28,179.79,179.64,3.04]
[1755697686420,0.09,179.78,179.64,3.04]
[1755697686622,374.22,179.79,179.64,3.04]
[1755697687217,8.25330268,179.78,179.64,3.04]
[1755697687424,8.25330268,179.78,179.56,3.04]
[1755697687623,8.25330268,179.74,179.56,3.04]
[1755697687830,153.4,179.73,179.56,3.04]
[1755697688429,153.4,179.73,179.51,3.04]
[1755697688430,8.25330268,179.7,179.51,3.04]
[1755697688624,8.25330268,179.75,179.58,8.6083]
[1755697688927,153.4,179.74,179.58,3.04]
[1755697689417,374.22,179.79,179.58,3.04]
[1755697689621,5.5623,179.78,179.61,3.04]
[1755697689828,527.6,179.79,179.61,3.04]
[1755697690224,5.5643,179.72,179.62,5.567]
[1755697690530,527.6,179.79,179.61,3.04]
[1755697691024,8.25330268,179.76,179.61,3.04]
[1755697691230,5.5656,179.68,179.58,5.5684]
[1755697691529,8.25330268,179.76,179.57,3.04]
[1755697691728,8.00734754,179.75,179.57,3.04]